fUST/lending_fUST_20250708
["ID","MTS","AMOUNT","RATE_DAILY","PERIOD"]
[370313836,1751949041327,-590.80361207,0.00019178,2]
[370313837,1751949041336,-460.0,0.00019178,2]
[370313838,1751949041346,-1315.87,0.00019178,2]
[370313839,1751949041355,-460.0,0.00019178,2]
[370313840,1751949041365,-460.0,0.00019178,2]
[370313841,1751949041375,-460.0,0.00019178,2]
[370313842,1751949041385,-460.0,0.00019178,2]
[370313843,1751949041395,-1350.63,0.00019178,2]
[370313844,1751949041406,-460.0,0.00019178,2]
[370313845,1751949041415,-460.0,0.00019178,2]
[370313846,1751949041425,-460.0,0.00019178,2]
[370313847,1751949041435,-460.0,0.00019178,2]
[370313848,1751949041445,-460.0,0.00019178,2]
[370313849,1751949041455,-460.0,0.00019178,2]
[370313850,1751949041465,-460.0,0.00019178,2]
[370313851,1751949041475,-460.0,0.00019178,2]
[370313852,1751949041484,-460.0,0.00019178,2]
[370313853,1751949041494,-460.0,0.00019178,2]
[370313854,1751949041505,-460.0,0.00019178,2]
[370313855,1751949041515,-460.0,0.00019178,2]
[370313856,1751949041525,-460.0,0.00019178,2]
[370313857,1751949041535,-460.0,0.00019178,2]
[370313858,1751949041544,-460.0,0.00019178,2]
[370313859,1751949041554,-460.0,0.00019178,2]
[370313860,1751949041564,-460.0,0.00019178,2]
[370313861,1751949041573,-460.0,0.00019178,2]
[370313862,1751949041583,-460.0,0.00019178,2]
[370313863,1751949041593,-395.17515856,0.00019178,2]
[370313864,1751949041602,-460.0,0.00019178,2]
[370313865,1751949041612,-514.76,0.00019178,2]
[370313866,1751949041621,-462.87673652,0.00019178,2]
[370313867,1751949041630,-460.0,0.00019178,2]
[370313868,1751949041641,-460.0,0.00019178,2]
[370313869,1751949041650,-460.0,0.00019178,2]
[370313870,1751949041662,-872.98,0.00019178,2]
[370313871,1751949041672,-460.0,0.00019178,2]
[370313872,1751949041682,-460.0,0.00019178,2]
[370313873,1751949041692,-462.46951136,0.00019178,2]
[370313874,1751949041702,-460.0,0.00019178,2]
[370313875,1751949041711,-461.14424883,0.00019178,2]
[370313876,1751949041721,-460.0,0.00019178,2]
[370313877,1751949041730,-460.0,0.00019178,2]
[370313878,1751949041739,-460.0,0.00019178,2]
[370313879,1751949041749,-295.01143006,0.00019178,2]
[370313880,1751949041759,-1817.93,0.00019178,2]
[370313881,1751949041768,-460.0,0.00019178,2]
[370313882,1751949041778,-165.95047991,0.00019178,2]
[370313883,1751949041787,-460.0,0.00019178,2]
[370313884,1751949041796,-460.0,0.00019178,2]
[370313885,1751949041806,-460.0,0.00019178,2]
[370313886,1751949041816,-460.0,0.00019178,2]
[370313887,1751949041827,-461.27669522,0.00019178,2]
[370313888,1751949041837,-460.0,0.00019178,2]
[370313889,1751949041851,-460.0,0.00019178,2]
[370313890,1751949041861,-504.34,0.00019178,2]
[370313891,1751949041870,-1558.15,0.00019178,2]
[370313892,1751949041879,-463.01720261,0.00019178,2]
[370313893,1751949041889,-500.0,0.00019178,2]
[370313894,1751949041899,-412.87076751,0.00019178,2]
[370313895,1751949041910,-460.0,0.00019178,2]
[370313896,1751949041920,-460.0,0.00019178,2]
[370313897,1751949041931,-460.0,0.00019178,2]
[370313898,1751949041941,-460.0,0.00019178,2]
[370313899,1751949041951,-460.0,0.00019178,2]
[370313900,1751949041961,-460.0,0.00019178,2]
[370313901,1751949041971,-460.0,0.00019178,2]
[370313902,1751949041980,-460.0,0.00019178,2]
[370313903,1751949041990,-460.0,0.00019178,2]
[370313904,1751949041999,-460.0,0.00019178,2]
[370313905,1751949042008,-464.70495876,0.00019178,2]
[370313906,1751949042018,-460.0,0.00019178,2]
[370313907,1751949042028,-460.0,0.00019178,2]
[370313908,1751949042038,-3358.32,0.00019178,2]
[370313909,1751949042047,-462.0807414,0.00019178,2]
[370313910,1751949042058,-460.0,0.00019178,2]
[370313911,1751949042069,-462.28208702,0.00019178,2]
[370313912,1751949042080,-460.0,0.00019178,2]
[370313913,1751949042090,-460.0,0.00019178,2]
[370313914,1751949042100,-460.0,0.00019178,2]
[370313915,1751949042111,-460.0,0.00019178,2]
[370313916,1751949042121,-460.0,0.00019178,2]
[370313917,1751949042131,-460.0,0.00019178,2]
[370313918,1751949042142,-460.0,0.00019178,2]
[370313919,1751949042152,-460.0,0.00019178,2]
[370313920,1751949042162,-460.0,0.00019178,2]
[370313922,1751949042172,-468.50065099,0.00019178,2]
[370313923,1751949042182,-460.0,0.00019178,2]
[370313924,1751949042191,-460.0,0.00019178,2]
[370313926,1751949042201,-460.0,0.00019178,2]
[370313929,1751949042310,-460.0,0.00019178,2]
[370313930,1751949042320,-460.0,0.00019178,2]
[370313931,1751949042330,-460.0,0.00019178,2]
[370313932,1751949042340,-460.0,0.00019178,2]
[370313936,1751949042350,-460.0,0.00019178,2]
[370313938,1751949042360,-460.0,0.00019178,2]
[370313939,1751949042369,-460.0,0.00019178,2]
[370313940,1751949042379,-229.01872896,0.00019178,2]
[370313941,1751949042388,-460.0,0.00019178,2]
[370313942,1751949042399,-224.05316325,0.00019178,2]
[370313943,1751949042408,-460.0,0.00019178,2]
[370313944,1751949042419,-460.97783107,0.00019178,2]
[370313945,1751949042430,-461.98787167,0.00019178,2]
[370313946,1751949042440,-460.0,0.00019178,2]
[370313947,1751949042450,-460.0,0.00019178,2]
[370313948,1751949042461,-460.0,0.00019178,2]
[370313949,1751949042471,-460.0,0.00019178,2]
[370313950,1751949042481,-464.06000432,0.00019178,2]
[370313952,1751949042490,-584.02,0.00019178,2]
[370313953,1751949042500,-460.0,0.00019178,2]
[370313954,1751949042510,-315.35169802,0.00019178,2]
[370313955,1751949042520,-1161.57,0.00019178,2]
[370313956,1751949042530,-2667.14,0.00019178,2]
[370313957,1751949042540,-460.0,0.00019178,2]
[370313958,1751949042550,-460.0,0.00019178,2]
[370313959,1751949042559,-460.0,0.00019178,2]
[370313960,1751949042570,-460.0,0.00019178,2]
[370313961,1751949042579,-460.0,0.00019178,2]
[370313962,1751949042588,-460.0,0.00019178,2]
[370313963,1751949042598,-460.0,0.00019178,2]
[370313964,1751949042608,-2801.69,0.00019178,2]
[370313965,1751949042617,-460.0,0.00019178,2]
[370313966,1751949042627,-460.62724772,0.00019178,2]
[370313967,1751949042636,-460.0,0.00019178,2]
[370313968,1751949042646,-460.0,0.00019178,2]
[370313969,1751949042655,-469.37,0.00019178,2]
[370313970,1751949042664,-460.0,0.00019178,2]
[370313971,1751949042674,-462.18350068,0.00019178,2]
[370313972,1751949042683,-460.0,0.00019178,2]
[370313973,1751949042692,-460.0,0.00019178,2]
[370313974,1751949042702,-460.0,0.00019178,2]
[370313975,1751949042711,-460.0,0.00019178,2]
[370313976,1751949042721,-460.0,0.00019178,2]
[370313978,1751949042730,-460.0,0.00019178,2]
[370313979,1751949042740,-460.0,0.00019178,2]
[370313980,1751949042749,-461.67212928,0.00019178,2]
[370313981,1751949042759,-460.0,0.00019178,2]
[370313982,1751949042769,-881.46,0.00019178,2]
[370313983,1751949042778,-460.0,0.00019178,2]
[370313984,1751949042788,-460.0,0.00019178,2]
[370313986,1751949042797,-518.86430915,0.00019178,2]
[370313988,1751949042806,-460.0,0.00019178,2]
[370313990,1751949042815,-460.0,0.00019178,2]
[370313991,1751949042825,-460.0,0.00019178,2]
[370313992,1751949042834,-460.0,0.00019178,2]
[370313993,1751949042848,-460.0,0.00019178,2]
[370313994,1751949042858,-460.0,0.00019178,2]
[370313996,1751949042867,-460.0,0.00019178,2]
[370313998,1751949042876,-460.0,0.00019178,2]
[370313999,1751949042887,-460.0,0.00019178,2]
[370314000,1751949042897,-460.0,0.00019178,2]
[370314001,1751949042906,-460.0,0.00019178,2]
[370314003,1751949042915,-460.0,0.00019178,2]
[370314004,1751949042925,-460.0,0.00019178,2]
[370314005,1751949042935,-460.0,0.00019178,2]
[370314006,1751949042945,-461.64819029,0.00019178,2]
[370314007,1751949042954,-460.0,0.00019178,2]
[370314008,1751949042963,-460.0,0.00019178,2]
[370314009,1751949042973,-173.86101571,0.00019178,2]
[370314010,1751949042982,-197.515077,0.00019178,2]
[370314011,1751949042992,-1891.44887149,0.00019178,2]
[370314013,1751949043001,-444.264881,0.00019233,2]
[370314015,1751949043011,-314.0,0.00019245,2]
[370314017,1751949043020,-314.0,0.00019301,2]
[370314018,1751949043030,-314.0,0.00019304,2]
[370314019,1751949043039,-314.0,0.00019307,2]
[370314020,1751949043049,-151.0,0.00019307,2]
[370314021,1751949043058,-2186.85951845,0.00019308,2]
[370314022,1751949043068,-314.0,0.00019316,2]
[370314023,1751949043077,-500.0,0.00019347,2]
[370314024,1751949043087,-428.6046964,0.00019425,2]
[370314025,1751949043096,-428.6046964,0.00019425,2]
[370314026,1751949043106,-428.6046964,0.00019425,2]
[370314027,1751949043115,-154.8587526,0.00019425,2]
[370314028,1751949043124,-5466.25918479,0.00019445,2]
[370314029,1751949043134,-461.41671864,0.00019452,2]
[370314030,1751949043144,-462.72454661,0.00019452,2]
[370314031,1751949043154,-251.64331887,0.00019452,2]
[370314032,1751949043163,-416.80918711,0.00019452,2]
[370314033,1751949043173,-466.80422252,0.00019452,2]
[370314034,1751949043184,-510.58680343,0.00019452,2]
[370314035,1751949043194,-460.0,0.00019452,2]
[370314036,1751949043204,-316.97761444,0.00019452,2]
[370314037,1751949043213,-460.0,0.00019452,2]
[370314038,1751949043225,-468.98618099,0.00019452,2]
[370314039,1751949043235,-460.0,0.00019452,2]
[370314040,1751949043245,-460.0,0.00019452,2]
[370314041,1751949043255,-460.0,0.00019452,2]
[370314042,1751949043265,-460.0,0.00019452,2]
[370314043,1751949043274,-460.0,0.00019452,2]
[370314044,1751949043284,-460.0,0.00019452,2]
[370314045,1751949043293,-579.75195799,0.00019452,2]
[370314046,1751949043304,-460.0,0.00019452,2]
[370314047,1751949043314,-460.0,0.00019452,2]
[370314048,1751949043325,-460.0,0.00019452,2]
[370314049,1751949043335,-435.98862857,0.00019452,2]
[370314050,1751949043345,-460.0,0.00019452,2]
[370314051,1751949043355,-460.0,0.00019452,2]
[370314052,1751949043365,-460.0,0.00019452,2]
[370314053,1751949043376,-460.0,0.00019452,2]
[370314054,1751949043387,-467.18396138,0.00019452,2]
[370314055,1751949043397,-460.0,0.00019452,2]
[370314056,1751949043408,-269.36174212,0.00019452,2]
[370314057,1751949043418,-460.0,0.00019452,2]
[370314058,1751949043428,-460.0,0.00019452,2]
[370314059,1751949043438,-460.0,0.00019452,2]
[370314060,1751949043447,-460.0,0.00019452,2]
[370314061,1751949043457,-466.66679279,0.00019452,2]
[370314062,1751949043467,-465.1286911,0.00019452,2]
[370314063,1751949043476,-460.0,0.00019452,2]
[370314064,1751949043486,-460.0,0.00019452,2]
[370314065,1751949043496,-460.0,0.00019452,2]
[370314066,1751949043506,-460.0,0.00019452,2]
[370314067,1751949043515,-298.15284665,0.00019452,2]
[370314068,1751949043526,-460.0,0.00019452,2]
[370314069,1751949043535,-460.0,0.00019452,2]
[370314070,1751949043545,-460.0,0.00019452,2]
[370314071,1751949043555,-471.14852699,0.00019452,2]
[370314072,1751949043565,-460.0,0.00019452,2]
[370314073,1751949043574,-499.50233296,0.00019452,2]
[370314074,1751949043584,-472.98918173,0.00019452,2]
[370314075,1751949043593,-460.0,0.00019452,2]
[370314076,1751949043603,-460.0,0.00019452,2]
[370314077,1751949043613,-464.44953808,0.00019452,2]
[370314078,1751949043622,-510.70723587,0.00019452,2]
[370314079,1751949043633,-460.0,0.00019452,2]
[370314080,1751949043642,-546.62043999,0.00019452,2]
[370314081,1751949043652,-460.0,0.00019452,2]
[370314082,1751949043661,-454.77265577,0.00019452,2]
[370314083,1751949043671,-553.4729292,0.00019452,2]
[370314084,1751949043680,-460.0,0.00019452,2]
[370314085,1751949043689,-358.11666813,0.00019452,2]
[370314086,1751949043699,-460.0,0.00019452,2]
[370314087,1751949043709,-464.64748081,0.00019452,2]
[370314088,1751949043719,-460.62639591,0.00019452,2]
[370314089,1751949043729,-463.03405252,0.00019452,2]
[370314090,1751949043739,-466.57299953,0.00019452,2]
[370314091,1751949043748,-364.36056248,0.00019452,2]
[370314092,1751949043758,-460.0,0.00019452,2]
[370314093,1751949043767,-460.0,0.00019452,2]
[370314094,1751949043777,-370.75545723,0.00019452,2]
[370314095,1751949043787,-460.0,0.00019452,2]
[370314096,1751949043797,-460.0,0.00019452,2]
[370314097,1751949043806,-460.0,0.00019452,2]
[370314098,1751949043815,-462.00577973,0.00019452,2]
[370314099,1751949043824,-460.0,0.00019452,2]
[370314100,1751949043834,-460.0,0.00019452,2]
[370314101,1751949043846,-460.0,0.00019452,2]
[370314102,1751949043855,-466.0159401,0.00019452,2]
[370314103,1751949043864,-460.0,0.00019452,2]
[370314104,1751949043873,-460.0,0.00019452,2]
[370314105,1751949043884,-460.0,0.00019452,2]
[370314106,1751949043893,-460.0,0.00019452,2]
[370314107,1751949043903,-460.0,0.00019452,2]
[370314108,1751949043912,-508.39185992,0.00019452,2]
[370314109,1751949043922,-460.0,0.00019452,2]
[370314110,1751949043932,-464.33823112,0.00019452,2]
[370314111,1751949043943,-466.93332094,0.00019452,2]
[370314112,1751949043952,-380.0,0.00019452,2]
[370314113,1751949043962,-460.0,0.00019452,2]
[370314114,1751949043971,-460.0,0.00019452,2]
[370314115,1751949043982,-460.0,0.00019452,2]
[370314116,1751949043992,-216.77210225,0.00019452,2]
[370314117,1751949044004,-479.36262082,0.00019452,2]
[370314118,1751949044014,-465.84333321,0.00019452,2]
[370314119,1751949044024,-460.0,0.00019452,2]
[370314120,1751949044134,-460.0,0.00019452,2]
[370314121,1751949044144,-460.0,0.00019452,2]
[370314122,1751949044155,-460.0,0.00019452,2]
[370314123,1751949044164,-460.0,0.00019452,2]
[370314124,1751949044174,-463.5634391,0.00019452,2]
[370314125,1751949044184,-500.0,0.00019452,2]
[370314126,1751949044194,-529.02,0.00019452,2]
[370314127,1751949044205,-468.72437792,0.00019452,2]
[370314128,1751949044217,-527.9,0.00019452,2]
[370314129,1751949044228,-460.0,0.00019452,2]
[370314130,1751949044239,-460.0,0.00019452,2]
[370314131,1751949044250,-464.71632842,0.00019452,2]
[370314132,1751949044260,-185.17200509,0.00019452,2]
[370314133,1751949044269,-499.64743257,0.00019452,2]
[370314134,1751949044279,-460.0,0.00019452,2]
[370314135,1751949044290,-462.35633799,0.00019452,2]
[370314136,1751949044302,-460.0,0.00019452,2]
[370314137,1751949044312,-460.0,0.00019452,2]
[370314138,1751949044321,-460.0,0.00019452,2]
[370314139,1751949044332,-460.0,0.00019452,2]
[370314140,1751949044342,-460.0,0.00019452,2]
[370314141,1751949044351,-460.0,0.00019452,2]
[370314142,1751949044362,-460.0,0.00019452,2]
[370314143,1751949044372,-460.0,0.00019452,2]
[370314144,1751949044381,-460.0,0.00019452,2]
[370314145,1751949044391,-460.0,0.00019452,2]
[370314146,1751949044400,-465.05393481,0.00019452,2]
[370314147,1751949044409,-460.0,0.00019452,2]
[370314148,1751949044419,-460.0,0.00019452,2]
[370314149,1751949044428,-293.73942522,0.00019452,2]
[370314150,1751949044438,-460.0,0.00019452,2]
[370314151,1751949044447,-339.46661334,0.00019452,2]
[370314152,1751949044456,-460.0,0.00019452,2]
[370314153,1751949044466,-460.0,0.00019452,2]
[370314154,1751949044476,-460.0,0.00019452,2]
[370314155,1751949044485,-463.17199371,0.00019452,2]
[370314156,1751949044495,-461.53552279,0.00019452,2]
[370314157,1751949044504,-460.0,0.00019452,2]
[370314158,1751949044515,-462.88990773,0.00019452,2]
[370314159,1751949044524,-460.0,0.00019452,2]
[370314160,1751949044533,-460.0,0.00019452,2]
[370314161,1751949044543,-460.0,0.00019452,2]
[370314162,1751949044552,-460.0,0.00019452,2]
[370314163,1751949044561,-460.0,0.00019452,2]
[370314164,1751949044571,-461.36909898,0.00019452,2]
[370314165,1751949044580,-460.0,0.00019452,2]
[370314166,1751949044589,-460.0,0.00019452,2]
[370314167,1751949044598,-460.0,0.00019452,2]
[370314168,1751949044608,-460.0,0.00019452,2]
[370314169,1751949044617,-460.0,0.00019452,2]
[370314170,1751949044626,-460.0,0.00019452,2]
[370314171,1751949044635,-465.81446955,0.00019452,2]
[370314172,1751949044644,-460.0,0.00019452,2]
[370314173,1751949044654,-460.0,0.00019452,2]
[370314174,1751949044663,-460.0,0.00019452,2]
[370314175,1751949044673,-464.58028659,0.00019452,2]
[370314176,1751949044682,-460.0,0.00019452,2]
[370314177,1751949044693,-460.0,0.00019452,2]
[370314178,1751949044702,-460.0,0.00019452,2]
[370314179,1751949044712,-460.0,0.00019452,2]
[370314180,1751949044722,-461.74777961,0.00019452,2]
[370314181,1751949044731,-459.87050425,0.00019452,2]
[370314182,1751949044740,-460.0,0.00019452,2]
[370314183,1751949044749,-460.0,0.00019452,2]
[370314184,1751949044759,-460.12318963,0.00019452,2]
[370314185,1751949044768,-460.0,0.00019452,2]
[370314186,1751949044777,-460.0,0.00019452,2]
[370314187,1751949044788,-460.0,0.00019452,2]
[370314188,1751949044798,-460.0,0.00019452,2]
[370314189,1751949044807,-462.55391539,0.00019452,2]
[370314190,1751949044816,-460.0,0.00019452,2]
[370314191,1751949044827,-460.0,0.00019452,2]
[370314192,1751949044836,-460.0,0.00019452,2]
[370314193,1751949044848,-465.16588099,0.00019452,2]
[370314194,1751949044858,-455.02335222,0.00019452,2]
[370314195,1751949044867,-460.0,0.00019452,2]
[370314196,1751949044877,-460.0,0.00019452,2]
[370314197,1751949044886,-460.0,0.00019452,2]
[370314198,1751949044897,-460.0,0.00019452,2]
[370314199,1751949044907,-460.0,0.00019452,2]
[370314200,1751949044919,-460.0,0.00019452,2]
[370314201,1751949044930,-460.0,0.00019452,2]
[370314202,1751949044940,-461.1672208,0.00019452,2]
[370314203,1751949044949,-460.0,0.00019452,2]
[370314204,1751949044960,-460.0,0.00019452,2]
[370314205,1751949044969,-460.83446027,0.00019452,2]
[370314206,1751949044979,-463.15177712,0.00019452,2]
[370314207,1751949044989,-460.0,0.00019452,2]
[370314208,1751949044999,-634.73,0.00019452,2]
[370314209,1751949045008,-465.7245759,0.00019452,2]
[370314210,1751949045019,-463.32003972,0.00019452,2]
[370314211,1751949045028,-573.26179542,0.00019452,2]
[370314212,1751949045038,-460.0,0.00019452,2]
[370314213,1751949045047,-460.0,0.00019452,2]
[370314214,1751949045056,-460.0,0.00019452,2]
[370314215,1751949045066,-460.0,0.00019452,2]
[370314216,1751949045075,-460.0,0.00019452,2]
[370314217,1751949045084,-460.0,0.00019452,2]
[370314218,1751949045094,-508.55430109,0.00019452,2]
[370314219,1751949045103,-462.95603289,0.00019452,2]
[370314220,1751949045113,-460.0,0.00019452,2]
[370314221,1751949045124,-2062.42,0.00019452,2]
[370314222,1751949045134,-460.0,0.00019452,2]
[370314223,1751949045144,-460.0,0.00019452,2]
[370314224,1751949045154,-460.0,0.00019452,2]
[370314225,1751949045163,-268.62891514,0.00019452,2]
[370314226,1751949045172,-460.0,0.00019452,2]
[370314227,1751949045181,-463.85952626,0.00019452,2]
[370314228,1751949045190,-461.79123757,0.00019452,2]
[370314229,1751949045199,-251.77051197,0.00019452,2]
[370314230,1751949045209,-460.0,0.00019452,2]
[370314231,1751949045218,-460.0,0.00019452,2]
[370314233,1751949045227,-460.0,0.00019452,2]
[370314234,1751949045236,-460.0,0.00019452,2]
[370314235,1751949045245,-460.0,0.00019452,2]
[370314236,1751949045255,-460.0,0.00019452,2]
[370314237,1751949045264,-461.92396548,0.00019452,2]
[370314238,1751949045275,-460.0,0.00019452,2]
[370314239,1751949045284,-460.0,0.00019452,2]
[370314240,1751949045293,-460.0,0.00019452,2]
[370314241,1751949045303,-460.0,0.00019452,2]
[370314242,1751949045312,-460.0,0.00019452,2]
[370314243,1751949045322,-460.0,0.00019452,2]
[370314244,1751949045331,-460.0,0.00019452,2]
[370314245,1751949045340,-460.0,0.00019452,2]
[370314246,1751949045350,-545.58465802,0.00019452,2]
[370314247,1751949045359,-462.10568329,0.00019452,2]
[370314248,1751949045369,-151.0,0.00019452,2]
[370314249,1751949045378,-151.0,0.00019452,2]
[370314250,1751949045388,-151.0,0.00019452,2]
[370314251,1751949045397,-460.0,0.00019452,2]
[370314252,1751949045407,-460.0,0.00019452,2]
[370314253,1751949045416,-460.0,0.00019452,2]
[370314254,1751949045426,-460.0,0.00019452,2]
[370314255,1751949045435,-460.0,0.00019452,2]
[370314256,1751949045445,-461.50870629,0.00019452,2]
[370314257,1751949045454,-460.0,0.00019452,2]
[370314258,1751949045463,-460.0,0.00019452,2]
[370314259,1751949045473,-460.0,0.00019452,2]
[370314260,1751949045483,-460.0,0.00019452,2]
[370314261,1751949045492,-460.0,0.00019452,2]
[370314262,1751949045502,-460.0,0.00019452,2]
[370314263,1751949045512,-460.0,0.00019452,2]
[370314264,1751949045521,-460.0,0.00019452,2]
[370314265,1751949045530,-460.0,0.00019452,2]
[370314266,1751949045540,-460.0,0.00019452,2]
[370314267,1751949045550,-460.0,0.00019452,2]
[370314268,1751949045559,-460.0,0.00019452,2]
[370314269,1751949045568,-460.0,0.00019452,2]
[370314270,1751949045578,-460.0,0.00019452,2]
[370314271,1751949045587,-460.00000002,0.00019452,2]
[370314272,1751949045596,-460.0,0.00019452,2]
[370314274,1751949045605,-460.0,0.00019452,2]
[370314276,1751949045615,-460.0,0.00019452,2]
[370314277,1751949045623,-460.0,0.00019452,2]
[370314278,1751949045633,-503.83560468,0.00019452,2]
[370314279,1751949045642,-460.0,0.00019452,2]
[370314280,1751949045652,-473.75516351,0.00019452,2]
[370314281,1751949045663,-362.99370898,0.00019452,2]
[370314282,1751949045672,-460.0,0.00019452,2]
[370314283,1751949045682,-460.0,0.00019452,2]
[370314284,1751949045692,-460.0,0.00019452,2]
[370314285,1751949045792,-1872.38,0.00019452,2]
[370314286,1751949045803,-460.0,0.00019452,2]
[370314287,1751949045812,-460.0,0.00019452,2]
[370314288,1751949045821,-460.0,0.00019452,2]
[370314289,1751949045831,-460.0,0.00019452,2]
[370314290,1751949045840,-460.0,0.00019452,2]
[370314291,1751949045853,-460.0,0.00019452,2]
[370314292,1751949045863,-460.0,0.00019452,2]
[370314293,1751949045872,-460.0,0.00019452,2]
[370314294,1751949045881,-460.0,0.00019452,2]
[370314295,1751949045890,-460.0,0.00019452,2]
[370314296,1751949045899,-460.0,0.00019452,2]
[370314297,1751949045908,-460.0,0.00019452,2]
[370314298,1751949045918,-471.78,0.00019452,2]
[370314299,1751949045927,-460.0,0.00019452,2]
[370314300,1751949045937,-460.0,0.00019452,2]
[370314301,1751949045948,-309.69983773,0.00019452,2]
[370314302,1751949045957,-501.49,0.00019452,2]
[370314303,1751949045966,-460.0,0.00019452,2]
[370314304,1751949045976,-460.0,0.00019452,2]
[370314305,1751949045986,-215.30207697,0.00019452,2]
[370314306,1751949045995,-582.34,0.00019452,2]
[370314307,1751949046004,-3532.55,0.00019452,2]
[370314308,1751949046013,-466.0575223,0.00019452,2]
[370314309,1751949046022,-460.0,0.00019452,2]
[370314310,1751949046032,-461.66829975,0.00019452,2]
[370314311,1751949046041,-460.0,0.00019452,2]
[370314312,1751949046050,-460.0,0.00019452,2]
[370314313,1751949046060,-460.0,0.00019452,2]
[370314314,1751949046069,-460.0,0.00019452,2]
[370314315,1751949046079,-1619.33,0.00019452,2]
[370314316,1751949046088,-730.74,0.00019452,2]
[370314317,1751949046098,-460.0,0.00019452,2]
[370314318,1751949046107,-460.0,0.00019452,2]
[370314319,1751949046117,-467.1236962,0.00019452,2]
[370314320,1751949046127,-460.0,0.00019452,2]
[370314321,1751949046136,-460.0,0.00019452,2]
[370314322,1751949046145,-460.0,0.00019452,2]
[370314323,1751949046156,-460.0,0.00019452,2]
[370314324,1751949046165,-370.86851748,0.00019452,2]
[370314325,1751949046174,-460.0,0.00019452,2]
[370314326,1751949046184,-460.0,0.00019452,2]
[370314327,1751949046193,-460.0,0.00019452,2]
[370314328,1751949046202,-460.0,0.00019452,2]
[370314329,1751949046212,-460.0,0.00019452,2]
[370314330,1751949046222,-460.0,0.00019452,2]
[370314331,1751949046231,-460.0,0.00019452,2]
[370314332,1751949046241,-174.10134112,0.00019452,2]
[370314333,1751949046250,-460.0,0.00019452,2]
[370314334,1751949046260,-461.96,0.00019452,2]
[370314335,1751949046269,-460.0,0.00019452,2]
[370314336,1751949046281,-460.0,0.00019452,2]
[370314337,1751949046290,-460.0,0.00019452,2]
[370314338,1751949046300,-460.0,0.00019452,2]
[370314339,1751949046310,-460.0,0.00019452,2]
[370314340,1751949046319,-460.0,0.00019452,2]
[370314341,1751949046328,-460.0,0.00019452,2]
[370314342,1751949046338,-496.62,0.00019452,2]
[370314343,1751949046347,-460.0,0.00019452,2]
[370314344,1751949046357,-462.0845288,0.00019452,2]
[370314345,1751949046366,-460.0,0.00019452,2]
[370314346,1751949046375,-460.0,0.00019452,2]
[370314347,1751949046384,-1354.13,0.00019452,2]
[370314348,1751949046394,-460.0,0.00019452,2]
[370314349,1751949046403,-460.0,0.00019452,2]
[370314350,1751949046412,-460.0,0.00019452,2]
[370314351,1751949046422,-460.0,0.00019452,2]
[370314352,1751949046431,-922.07,0.00019452,2]
[370314353,1751949046441,-460.0,0.00019452,2]
[370314354,1751949046450,-504.92359047,0.00019452,2]
[370314355,1751949046459,-460.0,0.00019452,2]
[370314356,1751949046470,-460.0,0.00019452,2]
[370314357,1751949046480,-460.0,0.00019452,2]